fUSD/lending_fUSD_20250219
["ID","MTS","AMOUNT","RATE_DAILY","PERIOD"]
[353609192,1739957252335,-387.40132785,0.0001378,2]
[353609193,1739957252346,-112.59867215,0.0001378,2]
[353609194,1739957252355,-387.40132785,0.0001378,2]
[353609195,1739957252367,-112.59867215,0.0001378,2]
[353609196,1739957252376,-387.40132785,0.0001378,2]
[353609197,1739957252394,-112.59867215,0.0001378,2]
[353609198,1739957252403,-500.0,0.0001378,2]
[353609199,1739957252413,-500.0,0.0001378,2]
[353609200,1739957252423,-500.0,0.0001378,2]
[353609201,1739957252432,-500.0,0.0001378,2]
[353609202,1739957252441,-500.0,0.0001378,2]
[353609203,1739957252450,-404.92132785,0.0001378,2]
[353609204,1739957252462,-95.07867215,0.0001378,2]
[353609205,1739957252471,-404.92132785,0.0001378,2]
[353609206,1739957252488,-389.79867215,0.0001378,2]
[353609207,1739957252498,-1912.34,0.0001378,2]
[353609208,1739957252507,-451.97132785,0.0001378,2]
[353609209,1739957252519,-48.02867215,0.0001378,2]
[353609210,1739957252529,-451.97132785,0.0001378,2]
[353609211,1739957252540,-500.0,0.0001378,2]
[353609212,1739957252551,-500.0,0.0001378,2]
[353609213,1739957252562,-500.0,0.0001378,2]
[353609214,1739957252573,-500.0,0.0001378,2]
[353609215,1739957252585,-375.47867215,0.0001378,2]
[353609216,1739957252594,-124.52132785,0.0001378,2]
[353609217,1739957252613,-375.47867215,0.0001378,2]
[353609218,1739957252622,-500.0,0.0001378,2]
[353609219,1739957252631,-500.0,0.0001378,2]
[353609220,1739957252641,-364.73132785,0.0001378,2]
[353609221,1739957252652,-124.81099805,0.0001378,2]
[353609222,1739957252662,-500.0,0.0001378,2]
[353609223,1739957252671,-95.37900195,0.0001378,2]
[353609224,1739957252682,-404.62099805,0.0001378,2]
[353609225,1739957252691,-95.37900195,0.0001378,2]
[353609226,1739957252703,-404.62099805,0.0001378,2]
[353609227,1739957252712,-95.37900195,0.0001378,2]
[353609228,1739957252728,-404.62099805,0.0001378,2]
[353609229,1739957252737,-95.37900195,0.0001378,2]
[353609230,1739957252748,-404.62099805,0.0001378,2]
[353609231,1739957252757,-95.37900195,0.0001378,2]
[353609232,1739957252769,-404.62099805,0.0001378,2]
[353609233,1739957252778,-271.21900195,0.0001378,2]
[353609234,1739957252789,-228.78099805,0.0001378,2]
[353609235,1739957252798,-309.62900195,0.0001378,2]
[353609236,1739957252823,-190.37099805,0.0001378,2]
[353609237,1739957252832,-309.62900195,0.0001378,2]
[353609238,1739957252851,-190.37099805,0.0001378,2]
[353609239,1739957252860,-309.62900195,0.0001378,2]
[353609240,1739957252879,-190.37099805,0.0001378,2]
[353609241,1739957252889,-500.0,0.0001378,2]
[353609242,1739957252899,-551.881425,0.0001378,2]
[353609243,1739957252920,-42.67757695,0.0001378,2]
[353609244,1739957252933,-701.65242305,0.0001378,2]
[353609245,1739957252943,-500.0,0.0001378,2]
[353609246,1739957252954,-500.0,0.0001378,2]
[353609247,1739957252964,-500.0,0.0001378,2]
[353609248,1739957252973,-64.87757695,0.0001378,2]
[353609249,1739957252985,-435.12242305,0.0001378,2]
[353609250,1739957252996,-64.87757695,0.0001378,2]
[353609251,1739957253008,-435.12242305,0.0001378,2]
[353609252,1739957253018,-64.87757695,0.0001378,2]
[353609253,1739957253029,-435.12242305,0.0001378,2]
[353609254,1739957253040,-500.0,0.0001378,2]
[353609255,1739957253050,-85.07757695,0.0001378,2]
[353609256,1739957253063,-500.0,0.0001378,2]
[353609257,1739957253076,-500.0,0.0001378,2]
[353609258,1739957253117,-392.05242305,0.0001378,2]
[353609259,1739957253127,-107.94757695,0.0001378,2]
[353609260,1739957253140,-392.05242305,0.0001378,2]
[353609261,1739957253150,-107.94757695,0.0001378,2]
[353609262,1739957253163,-392.05242305,0.0001378,2]
[353609263,1739957253174,-150.98446301,0.0001378,2]
[353609264,1739957253187,-349.01553699,0.0001378,2]
[353609265,1739957253198,-265.34651804,0.0001378,2]
[353609266,1739957253211,-234.65348196,0.0001378,2]
[353609267,1739957253222,-265.34651804,0.0001378,2]
[353609268,1739957253236,-234.65348196,0.0001378,2]
[353609269,1739957253247,-265.34651804,0.0001378,2]
[353609270,1739957253259,-234.65348196,0.0001378,2]
[353609271,1739957253271,-265.34651804,0.0001378,2]
[353609272,1739957253285,-234.65348196,0.0001378,2]
[353609273,1739957253298,-265.34651804,0.0001378,2]
[353609274,1739957253312,-234.65348196,0.0001378,2]
[353609275,1739957253323,-185.46839193,0.0001378,2]
[353609276,1739957253335,-79.87812611,0.0001378,2]
[353609277,1739957253378,-474.11187389,0.0001378,2]
[353609278,1739957253389,-465.02,0.0001378,2]
[353609279,1739957253399,-500.0,0.0001378,2]
[353609280,1739957253410,-500.0,0.0001378,2]
[353609281,1739957253421,-500.0,0.0001378,2]
[353609282,1739957253433,-500.0,0.0001378,2]
[353609283,1739957253445,-500.0,0.0001378,2]
[353609284,1739957253457,-500.0,0.0001378,2]
[353609285,1739957253468,-500.0,0.0001378,2]
[353609286,1739957253479,-500.0,0.0001378,2]
[353609287,1739957253490,-242.48812611,0.0001378,2]
[353609288,1739957253521,-257.51187389,0.0001378,2]
[353609289,1739957253532,-151.0,0.0001378,2]
[353609290,1739957253543,-91.48812611,0.0001378,2]
[353609291,1739957253563,-408.51187389,0.0001378,2]
[353609292,1739957253573,-91.48812611,0.0001378,2]
[353609293,1739957253587,-408.51187389,0.0001378,2]
[353609294,1739957253599,-91.48812611,0.0001378,2]
[353609295,1739957253616,-408.51187389,0.0001378,2]
[353609296,1739957253627,-91.48812611,0.0001378,2]
[353609297,1739957253655,-408.51187389,0.0001378,2]
[353609298,1739957253666,-91.48812611,0.0001378,2]
[353609299,1739957253685,-408.51187389,0.0001378,2]
[353609300,1739957253696,-1875.64,0.0001378,2]
[353609301,1739957253707,-266.75,0.0001378,2]
[353609302,1739957253718,-497.31812611,0.0001378,2]
[353609303,1739957253731,-2.68187389,0.0001378,2]
[353609304,1739957253742,-497.31812611,0.0001378,2]
[353609305,1739957253759,-2.68187389,0.0001378,2]
[353609306,1739957253769,-500.0,0.0001378,2]
[353609307,1739957253779,-137.63812611,0.0001378,2]
[353609308,1739957253792,-500.0,0.0001378,2]
[353609309,1739957253805,-448.82187389,0.0001378,2]
[353609310,1739957253815,-500.0,0.0001378,2]
[353609311,1739957253826,-852.16,0.0001378,2]
[353609312,1739957253837,-500.0,0.0001378,2]
[353609313,1739957253849,-151.0,0.0001378,2]
[353609314,1739957253861,-197.23812611,0.0001378,2]
[353609315,1739957253887,-302.76187389,0.0001378,2]
[353609316,1739957253899,-197.23812611,0.0001378,2]
[353609317,1739957253923,-500.0,0.00013698,2]
[353609318,1739957253942,-323.11143155,0.0001378,2]
[353609319,1739957253953,-176.88856845,0.0001378,2]
[353609320,1739957253974,-323.11143155,0.0001378,2]
[353609321,1739957253985,-176.88856845,0.0001378,2]
[353609322,1739957253998,-323.11143155,0.0001378,2]
[353609323,1739957254008,-176.88856845,0.0001378,2]
[353609324,1739957254022,-235.74143155,0.0001378,2]
[353609325,1739957254033,-264.25856845,0.0001378,2]
[353609326,1739957254047,-235.74143155,0.0001378,2]
[353609327,1739957254059,-264.25856845,0.0001378,2]
[353609328,1739957254072,-235.74143155,0.0001378,2]
[353609329,1739957254082,-264.25856845,0.0001378,2]
[353609330,1739957254096,-235.74143155,0.0001378,2]
[353609331,1739957254105,-264.25856845,0.0001378,2]
[353609332,1739957254125,-235.74143155,0.0001378,2]
[353609333,1739957254135,-661.10856845,0.0001378,2]
[353609334,1739957254164,-629.07043743,0.0001378,2]
[353609335,1739957254183,-418.45099412,0.0001378,2]
[353609336,1739957254193,-773.06900588,0.0001378,2]
[353609337,1739957254206,-500.0,0.0001378,2]
[353609338,1739957254226,-340.91099412,0.0001378,2]
[353609339,1739957254237,-159.08900588,0.0001378,2]
[353609340,1739957254250,-340.91099412,0.0001378,2]
[353609341,1739957254261,-159.08900588,0.0001378,2]
[353609342,1739957254274,-340.91099412,0.0001378,2]
[353609343,1739957254284,-159.08900588,0.0001378,2]
[353609344,1739957254297,-340.91099412,0.0001378,2]
[353609345,1739957254307,-159.08900588,0.0001378,2]
[353609346,1739957254330,-340.91099412,0.0001378,2]
[353609347,1739957254340,-159.08900588,0.0001378,2]
[353609348,1739957254368,-500.0,0.00013698,2]
[353609349,1739957254378,-717.43099412,0.0001378,2]
[353609350,1739957254388,-500.0,0.0001378,2]
[353609351,1739957254399,-219.92900588,0.0001378,2]
[353609352,1739957254419,-280.07099412,0.0001378,2]
[353609353,1739957254428,-219.92900588,0.0001378,2]
[353609354,1739957254450,-280.07099412,0.0001378,2]
[353609355,1739957254460,-219.92900588,0.0001378,2]
[353609356,1739957254471,-280.07099412,0.0001378,2]
[353609357,1739957254481,-219.92900588,0.0001378,2]
[353609358,1739957254493,-280.07099412,0.0001378,2]
[353609359,1739957254503,-219.92900588,0.0001378,2]
[353609360,1739957254519,-280.07099412,0.0001378,2]
[353609361,1739957254529,-219.92900588,0.0001378,2]
[353609362,1739957254542,-332.65099412,0.0001378,2]
[353609363,1739957254552,-167.34900588,0.0001378,2]
[353609364,1739957254584,-500.0,0.0001378,2]
[353609365,1739957254595,-161.65,0.0001378,2]
[353609366,1739957254859,-338.35,0.0001378,2]
[353609367,1739957254868,-694.12,0.0001378,2]
[353609368,1739957254878,-500.0,0.0001378,2]
[353609369,1739957254888,-466.07,0.0001378,2]
[353609370,1739957254978,-770.83611832,0.0001378,2]
[353609389,1739957431519,-250.0,0.00013187,2]
[353609391,1739957431529,-1621.71324627,0.0001368,2]
[353609392,1739957431540,-502.85226426,0.0001368,2]
[353609393,1739957431628,-2638.70572729,0.0001368,2]
[353609394,1739957431639,-543.46441461,0.0001368,2]
[353609395,1739957431685,-6200.59074148,0.0001368,2]
[353609396,1739957431797,-2021.717,0.0001368,2]
[353609397,1739957431808,-1025.55818525,0.0001368,2]
[353609398,1739957431819,-500.27282545,0.0001368,2]
[353609399,1739957431831,-5464.46504549,0.0001368,2]
[353609400,1739957431842,-2727.5759499,0.0001368,2]
[353609401,1739957431851,-500.0,0.00013698,2]
[353609402,1739957431861,-500.0,0.00013698,2]
[353609403,1739957431871,-500.0,0.00013698,2]
[353609404,1739957431880,-783.73,0.00013698,2]
[353609405,1739957431889,-628.05286678,0.00013698,2]
[353609406,1739957431898,-4965.72,0.00013698,2]
[353609407,1739957431908,-500.0,0.00013698,2]
[353609408,1739957431917,-500.0,0.00013698,2]
[353609409,1739957431927,-500.0,0.00013698,2]
[353609410,1739957431941,-500.0,0.00013698,2]
[353609411,1739957431951,-542.9,0.00013698,2]
[353609412,1739957431961,-671.12676936,0.00013698,2]
[353609414,1739957431976,-584.45323064,0.00013698,2]
[353609416,1739957431986,-500.0,0.00013698,2]
[353609417,1739957431995,-500.0,0.00013698,2]
[353609418,1739957432005,-571.6,0.00013698,2]
[353609419,1739957432014,-500.0,0.00013698,2]
[353609421,1739957432023,-500.0,0.00013698,2]
[353609422,1739957432034,-293.94676936,0.00013698,2]
[353609423,1739957432047,-301.11323064,0.00013698,2]
[353609424,1739957432056,-500.0,0.00013698,2]
[353609425,1739957432066,-499.0619688,0.00013698,2]
[353609426,1739957432076,-870.4,0.00013698,2]
[353609427,1739957432085,-500.0,0.00013698,2]
[353609428,1739957432095,-500.0,0.00013698,2]
[353609429,1739957432105,-500.0,0.00013698,2]
[353609431,1739957432115,-500.0,0.00013698,2]
[353609433,1739957432125,-500.0,0.00013698,2]
[353609435,1739957432134,-29.11674172,0.00013698,2]
[353609442,1739957437508,-234.09181233,0.0001,3]
[353609443,1739957437520,-470.88325828,0.00013698,2]
[353609444,1739957437529,-500.0,0.00013698,2]
[353609445,1739957437538,-516.86821741,0.00013698,2]
[353609446,1739957437548,-500.0,0.00013698,2]
[353609447,1739957437558,-500.0,0.00013698,2]
[353609448,1739957437567,-500.0,0.00013698,2]
[353609449,1739957437576,-1312.22,0.00013698,2]
[353609450,1739957437585,-500.0,0.00013698,2]
[353609451,1739957437595,-500.0,0.00013698,2]
[353609452,1739957437605,-690.92,0.00013698,2]
[353609453,1739957437616,-500.0,0.00013698,2]
[353609454,1739957437626,-500.0,0.00013698,2]
[353609455,1739957437637,-1038.88,0.00013698,2]
[353609456,1739957437646,-517.97204574,0.00013698,2]
[353609457,1739957437655,-510.11,0.00013698,2]
[353609458,1739957437664,-500.0,0.00013698,2]
[353609459,1739957437674,-500.0,0.00013698,2]
[353609460,1739957437683,-500.0,0.00013698,2]
[353609461,1739957437693,-500.0,0.00013698,2]
[353609462,1739957437703,-513.55343424,0.00013698,2]
[353609463,1739957437713,-1128.72,0.00013698,2]
[353609464,1739957437722,-355.7033996,0.00013698,2]
[353609465,1739957437731,-685.38,0.00013698,2]
[353609466,1739957437741,-500.0,0.00013698,2]
[353609467,1739957437750,-529.31608534,0.00013698,2]
[353609468,1739957437759,-500.0,0.00013698,2]
[353609469,1739957437769,-500.0,0.00013698,2]
[353609470,1739957437778,-500.0,0.00013698,2]
[353609471,1739957437788,-500.0,0.00013698,2]
[353609473,1739957437798,-1630.13,0.00013698,2]
[353609475,1739957437807,-500.0,0.00013698,2]
[353609477,1739957437817,-500.0,0.00013698,2]
[353609479,1739957437827,-1105.85,0.00013698,2]
[353609481,1739957437836,-500.0,0.00013698,2]
[353609483,1739957437846,-595.83,0.00013698,2]
[353609485,1739957437855,-531.86,0.00013698,2]
[353609487,1739957437864,-500.0,0.00013698,2]
[353609489,1739957437873,-735.93,0.00013698,2]
[353609515,1739957438094,-500.0,0.00013698,2]
[353609518,1739957438108,-1130.06,0.00013698,2]
[353609520,1739957438118,-501.17444222,0.00013698,2]
[353609522,1739957438127,-500.0,0.00013698,2]
[353609524,1739957438136,-743.49,0.00013698,2]
[353609526,1739957438146,-623.46,0.00013698,2]
[353609528,1739957438154,-509.81486679,0.00013698,2]
[353609530,1739957438163,-1482.15,0.00013698,2]
[353609532,1739957438172,-500.0,0.00013698,2]
[353609534,1739957438182,-551.14,0.00013698,2]
[353609536,1739957438191,-500.0,0.00013698,2]
[353609537,1739957438201,-500.0,0.00013698,2]
[353609540,1739957438212,-1986.52,0.00013698,2]
[353609541,1739957438222,-500.0,0.00013698,2]
[353609544,1739957438232,-500.0,0.00013698,2]
[353609546,1739957438242,-500.0,0.00013698,2]
[353609548,1739957438251,-596.19,0.00013698,2]
[353609550,1739957438260,-500.0,0.00013698,2]
[353609551,1739957438269,-500.0,0.00013698,2]
[353609553,1739957438278,-527.55119751,0.00013698,2]
[353609556,1739957438288,-1429.02,0.00013698,2]
[353609558,1739957438298,-515.56,0.00013698,2]
[353609560,1739957438308,-500.0,0.00013698,2]
[353609561,1739957438317,-504.01,0.00013698,2]
[353609563,1739957438326,-500.0,0.00013698,2]
[353609565,1739957438335,-1375.73,0.00013698,2]
[353609568,1739957438345,-625.37,0.00013698,2]
[353609569,1739957438354,-751.56,0.00013698,2]
[353609571,1739957438362,-645.74,0.00013698,2]
[353609573,1739957438371,-645.74,0.00013698,2]
[353609576,1739957438381,-1045.9,0.00013698,2]
[353609577,1739957438390,-500.0,0.00013698,2]
[353609579,1739957438399,-500.0,0.00013698,2]
[353609581,1739957438408,-500.0,0.00013698,2]
[353609583,1739957438417,-500.0,0.00013698,2]
[353609585,1739957438426,-500.0,0.00013698,2]
[353609587,1739957438435,-500.0,0.00013698,2]
[353609589,1739957438444,-1195.24,0.00013698,2]
[353609591,1739957438453,-500.0,0.00013698,7]
[353609593,1739957438462,-500.0,0.00013698,2]
[353609596,1739957438472,-783.63,0.00013698,2]
[353609598,1739957438481,-923.97,0.00013698,2]
[353609600,1739957438491,-500.0,0.00013698,2]
[353609601,1739957438500,-500.0,0.00013698,2]
[353609603,1739957438509,-504.74248154,0.00013698,2]
[353609605,1739957438518,-500.0,0.00013698,2]
[353609607,1739957438527,-500.0,0.00013698,2]
[353609609,1739957438537,-533.29,0.00013698,2]
[353609611,1739957438546,-500.0,0.00013698,2]
[353609614,1739957438556,-561.8,0.00013698,2]
[353609616,1739957438565,-500.0,0.00013698,2]
[353609618,1739957438575,-500.0,0.00013698,2]
[353609619,1739957438584,-500.0,0.00013698,2]
[353609622,1739957438594,-500.0,0.00013698,2]
[353609623,1739957438603,-556.13,0.00013698,2]
[353609625,1739957438613,-500.0,0.00013698,2]
[353609627,1739957438622,-500.0,0.00013698,2]
[353609629,1739957438631,-871.44,0.00013698,2]
[353609631,1739957438640,-500.0,0.00013698,2]
[353609633,1739957438649,-500.0,0.00013698,2]
[353609635,1739957438659,-500.0,0.00013698,2]
[353609638,1739957438668,-500.0,0.00013698,2]
[353609640,1739957438677,-500.0,0.00013698,2]
[353609641,1739957438687,-500.0,0.00013698,2]
[353609643,1739957438696,-500.0,0.00013698,2]
[353609646,1739957438706,-520.39,0.00013698,2]
[353609648,1739957438717,-500.0,0.00013698,2]
[353609650,1739957438727,-500.0,0.00013698,2]
[353609651,1739957438736,-627.31,0.00013698,2]
[353609653,1739957438745,-504.8854892,0.00013698,2]
[353609656,1739957438755,-1049.1,0.00013698,2]
[353609658,1739957438764,-500.0,0.00013698,2]
[353609660,1739957438774,-500.0,0.00013698,2]
[353609662,1739957438784,-378.48701001,0.00013698,2]
[353609664,1739957438794,-500.0,0.00013698,2]
[353609666,1739957438803,-500.0,0.00013698,2]
[353609668,1739957438812,-500.0,0.00013698,2]
[353609670,1739957438821,-501.06647911,0.00013698,2]
[353609672,1739957438831,-509.4991507,0.00013698,2]
[353609674,1739957438839,-500.0,0.00013698,2]
[353609676,1739957438848,-500.0,0.00013698,2]
[353609678,1739957438857,-500.0,0.00013698,2]
[353609679,1739957438866,-366.64896548,0.00013698,2]
[353609681,1739957438875,-215.22479694,0.00013699,7]
[353609683,1739957438885,-200.0,0.00013699,2]
[353609686,1739957438894,-153.61,0.00013699,2]
[353609688,1739957438903,-178.9680553,0.00013763,2]
[353609690,1739957438913,-5828.54,0.0001377,2]
[353609691,1739957438921,-827.2,0.00013779,2]
[353609694,1739957438931,-774.83,0.00013779,2]
[353609695,1739957438940,-587.22,0.00013779,2]
[353609698,1739957438949,-2086.08,0.00013779,2]
[353609699,1739957438958,-500.0,0.00013779,2]
[353609701,1739957438968,-853.54,0.00013779,2]
[353609703,1739957438980,-539.54,0.00013779,2]
[353609705,1739957438989,-1000.57,0.00013779,2]
[353609707,1739957438998,-3508.55,0.00013779,2]
[353609709,1739957439008,-645.74,0.00013779,2]
[353609711,1739957439018,-645.74,0.00013779,2]
[353609713,1739957439027,-2167.87,0.00013779,2]
[353609715,1739957439038,-2190.71,0.00013779,2]
[353609717,1739957439048,-1967.58,0.00013779,2]
[353609719,1739957439058,-1557.18,0.00013779,2]
[353609721,1739957439067,-566.77,0.00013779,2]
[353609723,1739957439076,-750.63,0.00013779,2]
[353609725,1739957439086,-1770.14,0.00013779,2]
[353609727,1739957439095,-156.190119,0.00013779,2]
[353609729,1739957439105,-500.0,0.00013779,2]
[353609731,1739957439114,-500.0,0.0001378,2]
[353609733,1739957439123,-500.0,0.0001378,2]
[353609735,1739957439133,-500.0,0.0001378,2]
[353609737,1739957439143,-500.0,0.0001378,2]
[353609739,1739957439152,-500.0,0.0001378,2]
[353609741,1739957439161,-500.0,0.0001378,2]
[353609743,1739957439170,-500.0,0.0001378,2]
[353609745,1739957439180,-500.0,0.0001378,2]
[353609747,1739957439189,-3017.52,0.0001378,2]
[353609749,1739957439198,-500.0,0.0001378,2]
[353609751,1739957439207,-504.03247102,0.0001378,2]
[353609753,1739957439217,-500.0,0.0001378,2]
[353609755,1739957439227,-500.0,0.0001378,2]
[353609757,1739957439236,-620.68,0.0001378,2]
[353609759,1739957439245,-500.0,0.0001378,2]
[353609761,1739957439254,-720.19,0.0001378,2]
[353609763,1739957439264,-500.0,0.0001378,2]
[353609765,1739957439273,-500.0,0.0001378,2]
[353609767,1739957439284,-500.0,0.0001378,2]
[353609769,1739957439294,-675.84,0.0001378,2]
[353609771,1739957439303,-500.0,0.0001378,2]
[353609773,1739957439312,-154.45,0.0001378,2]
[353609775,1739957439322,-1284.93,0.0001378,2]
[353609776,1739957439331,-500.0,0.0001378,2]
[353609778,1739957439340,-500.0,0.0001378,2]
[353609781,1739957439351,-1020.2,0.0001378,2]
[353609783,1739957439360,-500.0,0.0001378,2]
[353609785,1739957439370,-500.0,0.0001378,2]
[353609787,1739957439379,-500.0,0.0001378,2]
[353609789,1739957439388,-516.57,0.0001378,2]
[353609791,1739957439397,-500.0,0.0001378,2]
[353609793,1739957439406,-500.0,0.0001378,2]
[353609794,1739957439415,-500.0,0.0001378,2]
[353609796,1739957439425,-500.0,0.0001378,2]
[353609799,1739957439435,-500.0,0.0001378,2]
[353609801,1739957439443,-500.0,0.0001378,2]
[353609802,1739957439453,-500.0,0.0001378,2]
[353609804,1739957439462,-500.0,0.0001378,2]
[353609806,1739957439471,-500.0,0.0001378,2]
[353609808,1739957439480,-534.22922163,0.0001378,2]
[353609810,1739957439489,-500.0,0.0001378,2]
[353609812,1739957439499,-640.32,0.0001378,2]
[353609815,1739957439508,-500.0,0.0001378,2]
[353609817,1739957439518,-2649.22,0.0001378,2]
[353609819,1739957439527,-500.0,0.0001378,2]
[353609822,1739957439538,-500.0,0.0001378,2]
[353609824,1739957439547,-500.0,0.0001378,2]
[353609827,1739957439557,-500.0,0.0001378,2]
[353609828,1739957439567,-500.0,0.0001378,2]
[353609830,1739957439578,-573.06,0.0001378,2]
[353609832,1739957439588,-500.0,0.0001378,2]
[353609834,1739957439597,-500.0,0.0001378,2]
[353609837,1739957439607,-500.0,0.0001378,2]
[353609839,1739957439616,-500.0,0.0001378,2]
[353609841,1739957439627,-500.0,0.0001378,2]
[353609843,1739957439637,-500.0,0.0001378,2]
[353609844,1739957439646,-500.0,0.0001378,2]
[353609845,1739957439656,-1937.36,0.0001378,2]
[353609846,1739957439665,-500.0,0.0001378,2]
[353609847,1739957439675,-250.28781041,0.0001378,2]
[353609848,1739957439684,-500.0,0.0001378,2]
[353609849,1739957439693,-500.0,0.0001378,2]
[353609850,1739957439702,-500.0,0.0001378,2]
[353609851,1739957439712,-500.0,0.0001378,2]
[353609852,1739957439721,-661.65,0.0001378,2]
[353609853,1739957439730,-500.0,0.0001378,2]
[353609854,1739957439739,-500.0,0.0001378,2]
[353609855,1739957439749,-1923.78,0.0001378,2]
[353609857,1739957439758,-500.0,0.0001378,2]
[353609859,1739957439767,-500.0,0.0001378,2]
[353609861,1739957439777,-500.0,0.0001378,2]
[353609863,1739957439787,-500.0,0.0001378,2]
[353609865,1739957439796,-500.0,0.0001378,2]
[353609867,1739957439806,-500.0,0.0001378,2]
[353609869,1739957439816,-513.08589398,0.0001378,2]
[353609871,1739957439825,-611.97821833,0.0001378,2]
[353609873,1739957439835,-500.0,0.0001378,2]
[353609875,1739957439844,-1499.07,0.0001378,2]
[353609877,1739957439854,-642.06,0.0001378,2]
[353609879,1739957439864,-500.0,0.0001378,2]
[353609882,1739957439873,-500.0,0.0001378,2]
[353609884,1739957439883,-500.0,0.0001378,2]
[353609886,1739957439893,-500.0,0.0001378,2]
[353609888,1739957439902,-500.0,0.0001378,2]
[353609890,1739957439912,-500.0,0.0001378,2]
[353609891,1739957439922,-500.0,0.0001378,2]
[353609893,1739957439931,-500.0,0.0001378,2]
[353609895,1739957439941,-500.0,0.0001378,2]
[353609898,1739957439951,-687.68,0.0001378,2]
[353609899,1739957439960,-500.0,0.0001378,2]
[353609901,1739957439969,-1705.94,0.0001378,2]
[353609903,1739957439981,-500.0,0.0001378,2]
[353609905,1739957439991,-500.0,0.0001378,2]
[353609907,1739957440000,-500.0,0.0001378,2]
[353609909,1739957440010,-500.0,0.0001378,2]
[353609910,1739957440024,-500.0,0.0001378,2]
[353609911,1739957440034,-500.0,0.0001378,2]
[353609912,1739957440043,-541.54,0.0001378,2]
[353609913,1739957440056,-500.0,0.0001378,2]
[353609914,1739957440066,-500.0,0.0001378,2]
[353609915,1739957440075,-500.0,0.0001378,2]
[353609916,1739957440085,-500.0,0.0001378,2]
[353609917,1739957440095,-500.0,0.0001378,2]
[353609918,1739957440104,-500.0,0.0001378,2]
[353609919,1739957440113,-500.0,0.0001378,2]
[353609920,1739957440124,-186.74554357,0.0001378,2]
[353609921,1739957440134,-500.0,0.0001378,2]
[353609922,1739957440143,-500.0,0.0001378,2]
[353609923,1739957440153,-500.0,0.0001378,2]
[353609924,1739957440162,-500.0,0.0001378,2]
[353609925,1739957440171,-500.0,0.0001378,2]
[353609926,1739957440181,-500.0,0.0001378,2]
[353609927,1739957440190,-500.0,0.0001378,2]
[353609928,1739957440200,-500.0,0.0001378,2]
[353609929,1739957440210,-2171.31,0.0001378,2]
[353609930,1739957440219,-500.0,0.0001378,2]
[353609932,1739957440227,-500.0,0.0001378,2]
[353609934,1739957440238,-661.61,0.0001378,2]
[353609936,1739957440247,-889.64,0.0001378,2]
[353609938,1739957440256,-538.22,0.0001378,2]
[353609940,1739957440265,-500.0,0.0001378,2]
[353609942,1739957440275,-564.55735189,0.0001378,2]
[353609944,1739957440284,-310.17197191,0.0001378,2]
[353609946,1739957440293,-577.83,0.0001378,2]
[353609948,1739957440302,-571.64,0.0001378,2]
[353609950,1739957440311,-500.0,0.0001378,2]
[353609952,1739957440321,-681.91,0.0001378,2]
[353609954,1739957440331,-500.0,0.0001378,2]
[353609956,1739957440340,-500.0,0.0001378,2]
[353609958,1739957440349,-500.0,0.0001378,2]
[353609960,1739957440359,-500.0,0.0001378,2]
[353609962,1739957440368,-500.0,0.0001378,2]
[353609964,1739957440377,-500.0,0.0001378,2]
[353609966,1739957440386,-1520.67,0.0001378,2]